bitfinex/quotes_ETHUSD_20250413
["timestamp","ask_amount","ask_price","bid_price","bid_amount"]
[1744585137351,0.9133,1585.1,1584.9,5.04744]
[1744585137522,6.79,1585.1,1585.0,5.04731]
[1744585137721,6.79,1585.1,1584.9,5.89294]
[1744585137932,9.79,1585.1,1585.0,0.20570462]
[1744585138132,15.9349596,1585.1,1584.9,0.8455]
[1744585138338,15.9349596,1585.1,1584.9,5.89312]
[1744585138524,15.9349596,1585.1,1585.0,0.20570462]
[1744585139038,6.79,1585.1,1584.9,5.893]
[1744585139215,6.79,1585.1,1585.0,5.25301462]
[1744585139614,6.79,1585.1,1585.0,0.20570462]
[1744585139841,6.79,1585.1,1585.0,5.04731]
[1744585140146,6.79,1585.1,1585.0,5.25301462]
[1744585140453,6.79,1585.1,1585.0,0.20570462]
[1744585141664,6.79,1585.1,1585.0,5.25301462]
[1744585142018,54.101,1585.2,1585.1,5.047]
[1744585142219,6.791,1585.4,1585.3,10.09259]
[1744585142417,6.791,1585.4,1585.3,5.25084674]
[1744585142956,16.88916554,1585.4,1585.3,0.20461674]
[1744585143113,11.84312554,1585.4,1585.3,0.20461674]
[1744585143316,11.84312554,1585.4,1585.1,10.09376]
[1744585143762,11.84312554,1585.4,1585.2,0.20465915]
[1744585144169,10.26432554,1585.4,1585.2,5.04667]
[1744585144463,6.79,1585.5,1585.3,1.10663557]
[1744585144657,6.79,1585.5,1585.2,5.04664]
[1744585144658,11.83593,1585.5,1585.2,5.04664]
[1744585144857,6.79,1585.5,1585.3,0.20452816]
[1744585145159,6.79,1585.5,1585.3,5.04629]
[1744585145774,9.79,1585.5,1585.4,0.20451966]
[1744585145978,11.273545,1585.5,1585.4,0.20451966]
[1744585146148,11.74407848,1585.5,1585.3,5.04629]
[1744585146346,11.74407848,1585.5,1585.2,5.04662]
[1744585146678,16.78997848,1585.5,1585.3,0.20454323]
[1744585147973,21.83587848,1585.5,1585.3,0.20454323]
[1744585148173,2.18358785,1585.4,1585.3,0.20454323]
[1744585148578,10.26053348,1585.5,1585.3,10.09258]
[1744585148762,10.26053348,1585.5,1585.4,5.04604]
[1744585149075,10.26053348,1585.5,1585.4,5.25057097]
[1744585149952,6.79,1585.5,1585.4,5.25057097]
[1744585150148,54.9954,1585.9,1585.6,5.0453]
[1744585150348,17.33441,1585.8,1585.4,6.15250097]
[1744585150682,15.28954,1585.8,1585.5,10.09131]
[1744585150975,15.77323091,1585.8,1585.6,5.24989137]
[1744585151162,54.121,1585.9,1585.7,5.94709]
[1744585151365,60.911,1585.9,1585.8,5.04477]
[1744585151564,60.911,1585.9,1585.8,5.24922179]
[1744585152554,72.04655,1585.9,1585.8,0.20445179]
[1744585152763,67.0021,1585.9,1585.7,5.04505]
[1744585153083,67.0021,1585.9,1585.8,0.20444802]
[1744585153298,67.0021,1585.9,1585.8,5.04477]
[1744585153496,0.48430581,1586.1,1585.9,5.04422]
[1744585153681,10.6634,1586.2,1585.9,5.04422]
[1744585153871,16.186665,1586.2,1586.0,0.20439339]
[1744585154281,5.0442,1586.0,1585.6,10.99256]
[1744585154507,10.0885,1586.0,1585.7,0.20445275]
[1744585154680,8.04451,1585.9,1585.7,0.20445275]
[1744585154883,8.91891,1585.9,1585.5,10.09125]
[1744585155065,5.270709,1585.9,1585.6,10.29503761]
[1744585155264,6.789,1585.8,1585.6,5.24974761]
[1744585157999,7.26357819,1585.8,1585.6,5.24974761]
[1744585159012,3.0,1585.7,1585.6,0.20448761]
[1744585159191,5.04627,1585.4,1585.2,0.899]
[1744585159398,15.339077,1585.3,1585.0,5.94617]
[1744585159702,10.292627,1585.3,1585.0,5.94628]
[1744585159905,6.788,1585.3,1585.2,5.04668]
[1744585160063,6.788,1585.3,1585.2,5.94568]
[1744585160912,60.275,1585.8,1585.5,5.04541]
[1744585161119,6.789,1585.6,1585.5,5.04572]
[1744585162215,6.789,1585.6,1585.4,5.94489]
[1744585162398,6.789,1585.6,1585.5,5.04572]
[1744585162783,6.789,1585.6,1585.5,5.94472]
[1744585163013,6.789,1585.6,1585.5,6.13912444]
[1744585163317,57.105,1585.8,1585.7,5.04509]
[1744585163480,63.2499596,1585.8,1585.6,5.04528]
[1744585163680,6.789,1585.9,1585.8,5.04477]
[1744585163985,6.789,1585.9,1585.8,0.19434506]
[1744585164314,7.972316,1585.9,1585.8,0.19434506]
[1744585164533,6.789,1585.9,1585.8,5.23911506]
[1744585164879,6.789,1585.9,1585.8,5.04477]
[1744585165898,6.789,1585.9,1585.7,5.94394]
[1744585166116,6.789,1585.9,1585.8,0.1914639]
[1744585166427,6.789,1585.9,1585.7,5.94394]
[1744585166731,6.789,1585.9,1585.8,5.2362339]
[1744585167099,6.789,1585.9,1585.8,5.04477]
[1744585167431,6.789,1585.9,1585.8,5.2362339]
[1744585168738,7.4679,1585.9,1585.8,0.1914639]
[1744585169090,7.4679,1585.9,1585.7,0.899]
[1744585169290,7.4679,1585.9,1585.8,0.19015048]
[1744585170246,15.51235,1585.9,1585.8,0.19015048]
[1744585170387,3.0,1585.7,1585.4,10.09195]
[1744585170718,3.804495,1585.7,1585.5,5.23542736]
[1744585171494,3.804495,1585.7,1585.5,0.18971736]
[1744585171694,3.804495,1585.7,1585.5,5.23540736]
[1744585171890,7.4679,1585.9,1585.5,1.04141736]
[1744585172209,7.4679,1585.9,1585.7,5.04509]
[1744585172409,10.4679,1585.9,1585.8,0.18968812]
[1744585173838,10.4679,1585.9,1585.7,5.04497]
[1744585174006,10.4679,1585.9,1585.8,0.18968812]
[1744585174339,10.4679,1585.9,1585.7,5.04497]
[1744585174540,10.4679,1585.9,1585.6,10.09067]
[1744585174835,10.4679,1585.9,1585.7,0.18970791]
[1744585174985,1.04679,1585.8,1585.6,10.09067]
[1744585175191,1.04679,1585.8,1585.7,0.18970791]
[1744585175497,10.4679,1585.9,1585.7,5.04507]
[1744585177253,10.4679,1585.9,1585.7,10.09007]
[1744585177557,9.778,1585.9,1585.8,5.89647]
[1744585178053,9.778,1585.9,1585.8,6.08615812]
[1744585178256,6.778,1585.9,1585.8,6.08615812]
[1744585179917,6.778,1585.9,1585.8,0.18968812]
[1744585180119,6.778,1585.9,1585.8,5.23445812]
[1744585180317,7.4558,1585.9,1585.8,5.23445812]
[1744585180953,7.4558,1585.9,1585.8,5.04477]
[1744585181158,6.778,1585.9,1585.8,5.04477]
[1744585181356,6.778,1585.9,1585.8,5.23469683]
[1744585184149,6.778,1585.9,1585.8,0.18992683]
[1744585184444,6.778,1585.9,1585.8,5.23469683]
[1744585185191,11.82245,1585.9,1585.8,0.18992683]
[1744585185358,10.4558,1585.9,1585.8,0.18992683]
[1744585185547,10.4558,1585.9,1585.7,5.04497]
[1744585186059,10.4558,1585.9,1585.8,0.18976643]
[1744585186379,10.4558,1585.9,1585.6,5.89679]
[1744585186578,1.04558,1585.8,1585.6,5.89679]
[1744585186778,1.04558,1585.8,1585.7,0.18971544]
[1744585187087,1.04558,1585.8,1585.6,5.89679]
[1744585187382,1.04558,1585.8,1585.7,0.18971544]
[1744585187758,1.04558,1585.8,1585.6,5.89708]
[1744585187956,1.04558,1585.8,1585.7,0.18971544]
[1744585188371,6.09035,1585.8,1585.5,5.04563]
[1744585188549,6.09035,1585.8,1585.7,0.18971544]
[1744585188746,1.04558,1585.8,1585.6,0.18973524]
[1744585188957,6.09035,1585.8,1585.7,0.18971544]
[1744585189260,6.09035,1585.8,1585.5,5.04563]
[1744585189457,6.09042,1585.8,1585.6,0.18973524]
[1744585189780,0.609042,1585.7,1585.6,0.18973524]
[1744585191293,1.466742,1585.7,1585.6,0.18973524]
[1744585191588,6.511832,1585.7,1585.4,5.04596]
[1744585191749,6.511832,1585.7,1585.6,0.18973524]
[1744585192291,11.557132,1585.7,1585.3,5.97969]
[1744585192492,1.1557132,1585.6,1585.5,5.04572]
[1744585192799,0.609042,1585.7,1585.5,5.23547503]
[1744585193168,5.654232,1585.7,1585.5,0.18975503]
[1744585193566,1.04558,1585.8,1585.6,5.0454]
[1744585193767,6.778,1585.8,1585.7,5.04509]
[1744585193966,6.778,1585.8,1585.7,5.23478284]
[1744585194372,6.778,1585.8,1585.7,5.04509]
[1744585194569,6.778,1585.8,1585.6,0.9334]
[1744585194875,16.005027,1585.8,1585.7,0.18969284]
[1744585195059,5.04534,1585.7,1585.3,5.04628]
[1744585195263,5.04541,1585.6,1585.4,0.18975976]
[1744585195570,5.04541,1585.6,1585.3,5.04624]
[1744585195769,5.04518,1585.7,1585.5,0.18973619]
[1744585195968,0.504518,1585.6,1585.4,5.23569599]
[1744585196310,5.04518,1585.7,1585.4,10.09188]
[1744585196903,5.04518,1585.7,1585.4,5.04594]
[1744585197206,5.04518,1585.7,1585.4,10.09186]
[1744585198109,5.04518,1585.7,1585.4,5.04592]
[1744585198496,21.907657,1585.8,1585.4,10.09186]
[1744585198696,2.1907657,1585.7,1585.4,10.09186]
[1744585199105,10.25158911,1585.8,1585.5,0.9334]
[1744585199319,9.778,1585.8,1585.5,5.97907]
[1744585199516,14.82279,1585.8,1585.5,5.97907]
[1744585199811,14.82279,1585.8,1585.5,11.02467]
[1744585199997,9.778,1585.8,1585.6,5.04536]
[1744585200199,11.260273,1585.8,1585.7,5.04509]
[1744585200380,6.778,1585.8,1585.7,5.04509]
[1744585200579,6.778,1585.8,1585.7,5.97849]
[1744585200910,5.04541,1585.6,1585.3,5.97965]
[1744585201115,5.04608,1585.4,1585.1,5.04693]
[1744585201278,9.769,1585.4,1584.8,5.04782]
[1744585201467,3.0,1585.1,1584.7,0.9334]
[1744585201669,5.04781,1584.9,1584.5,5.98219]
[1744585201863,11.81635,1585.0,1584.7,5.04802]
[1744585201864,6.769,1585.0,1584.7,5.04802]
[1744585202108,5.90562,1584.9,1584.5,11.03096]
[1744585202335,5.90562,1584.9,1584.6,5.04857]
[1744585202505,10.95351,1584.9,1584.5,5.98217]
[1744585202695,5.04833,1584.7,1584.4,10.47426187]
[1744585202897,6.77,1584.6,1584.4,10.47426187]
[1744585203138,6.77,1584.6,1584.4,5.42515187]
[1744585203341,12.71952,1584.6,1584.4,5.42515187]
[1744585203546,6.77,1584.6,1584.4,10.47420187]
[1744585203727,6.77,1584.6,1584.4,6.35925187]
[1744585203942,6.77,1584.6,1584.4,5.98327]
[1744585204311,7.95183,1584.6,1584.3,6.2209499]
[1744585204511,6.77,1584.6,1584.3,1.1715599]
[1744585204802,6.77,1584.6,1584.3,6.2210499]
[1744585205003,11.8187,1584.6,1584.3,0.2374599]
[1744585205204,5.04922,1584.4,1584.3,0.2374599]
[1744585205404,6.40669431,1584.4,1584.3,0.2374599]
[1744585205602,4.35747431,1584.4,1584.3,0.2374599]
[1744585205832,8.21131024,1584.4,1584.3,0.2374599]
[1744585206143,14.16133024,1584.4,1584.3,0.2374599]
[1744585206352,15.28211024,1584.4,1584.3,0.2374599]
[1744585206501,20.33133024,1584.4,1584.3,0.2374599]
[1744585206848,15.28211024,1584.4,1584.3,0.2374599]
[1744585207052,11.42827431,1584.4,1584.3,5.2869999]
[1744585207232,54.118,1584.5,1584.3,5.2869999]
[1744585207602,54.118,1584.5,1584.3,0.2374599]
[1744585208405,54.58316691,1584.5,1584.3,5.2868499]
[1744585209115,54.58316691,1584.5,1584.3,6.2209499]
[1744585209311,54.118,1584.5,1584.4,5.04922]
[1744585209515,20.2745471,1585.0,1584.4,5.04922]
[1744585209516,7.39981937,1585.0,1584.4,1.12701499]
[1744585209719,6.772,1584.9,1584.7,5.04804]
[1744585210213,7.24601957,1584.9,1584.6,0.9341]
[1744585210434,7.24601957,1584.9,1584.5,5.04876]
[1744585210748,7.24601957,1584.9,1584.4,5.98328]
[1744585210929,7.24601957,1584.9,1584.7,5.0481]
[1744585211139,7.24601957,1584.9,1584.5,5.04867]
[1744585212001,7.24601957,1584.9,1584.4,5.98329]
[1744585212200,0.55,1584.8,1584.4,5.04919]
[1744585212558,0.9008,1584.6,1584.3,0.2374599]
[1744585212858,6.772,1584.5,1584.3,0.2374599]
[1744585213477,4.4508,1584.4,1584.3,0.2374599]
[1744585214056,9.50002,1584.4,1584.3,0.2374599]
[1744585214411,69.79902,1584.4,1584.3,0.2374599]
[1744585214621,75.9439796,1584.4,1584.3,0.2374599]
[1744585215058,12.59316773,1583.6,1583.5,0.005]
[1744585215208,8.6023,1583.5,1583.1,0.05]
[1744585215405,3.55,1583.5,1583.1,0.05]
[1744585215653,5.55361777,1583.5,1583.1,0.05]
[1744585215854,15.65810777,1583.5,1583.1,0.05]
[1744585216150,0.9008,1583.2,1583.1,0.05]
[1744585216318,11.2238,1583.2,1583.1,0.05]
[1744585216704,11.14751112,1583.2,1583.1,0.05]
[1744585217259,12.81226223,1583.2,1583.1,0.05]
[1744585217434,17.86531223,1583.2,1583.1,0.25595785]
[1744585217620,17.86531223,1583.2,1583.1,0.05]
[1744585217822,17.86531223,1583.2,1583.1,0.27059052]
[1744585218211,12.81226223,1583.2,1583.1,0.27059052]
[1744585218409,12.26226223,1583.2,1583.1,0.27059052]
[1744585218961,12.26226223,1583.2,1583.1,0.05]
[1744585219111,7.24671112,1583.2,1583.1,0.2706132]
[1744585219316,6.773,1583.2,1583.1,0.2706132]
[1744585219544,6.773,1583.2,1583.1,5.3239832]
[1744585219913,6.71074615,1583.2,1583.1,5.3239832]
[1744585220113,6.775,1583.5,1583.1,0.2706132]
[1744585220622,6.775,1583.5,1583.2,5.05295]
[1744585220843,0.6775,1583.4,1583.2,0.21873436]
[1744585221059,5.05275,1583.3,1583.1,0.05]
[1744585221240,8.60305,1583.2,1583.1,0.05]
[1744585221872,3.0,1583.2,1583.1,0.05]
[1744585222335,0.6775,1583.4,1583.1,5.10337]
[1744585222535,3.0,1583.4,1583.2,5.05289]
[1744585222739,3.0,1583.4,1583.3,5.05273]
[1744585223327,6.775,1583.5,1583.4,5.05241]
[1744585224171,6.775,1583.5,1583.4,5.92431]
[1744585224959,0.916,1583.9,1583.6,5.05175]
[1744585225268,6.777,1583.8,1583.6,5.05175]
[1744585225650,6.777,1583.8,1583.7,5.27171018]
[1744585227039,6.777,1584.1,1584.0,10.10062]
[1744585227371,6.777,1584.1,1584.0,5.25762868]
[1744585227556,6.777,1584.4,1584.2,5.04986]
[1744585227731,6.777,1584.4,1584.3,0.20582979]
[1744585227932,6.777,1584.4,1584.2,5.04986]
[1744585228264,6.777,1584.4,1584.3,5.25536979]
[1744585228467,55.085,1585.0,1584.6,5.04829]
[1744585228686,61.855,1585.0,1584.5,5.92076]
[1744585228886,3.0,1584.8,1584.7,0.20565054]
[1744585229088,3.0,1584.8,1584.6,5.04843]
[1744585229654,66.90235,1585.0,1584.7,0.20316385]
[1744585229849,66.90235,1585.0,1584.5,10.96952]
[1744585229850,3.0,1584.8,1584.5,10.96952]
[1744585230394,3.0,1584.8,1584.6,10.30015121]
[1744585230710,3.0,1584.8,1584.6,10.30011121]
[1744585230993,3.0,1584.8,1584.6,0.20319121]
[1744585231694,3.0,1584.8,1584.5,5.04872]
[1744585231855,3.0,1584.8,1584.4,10.09834]
[1744585232053,3.0,1584.8,1584.5,10.09761]
[1744585232249,3.0,1584.8,1584.5,5.25199235]
[1744585232455,9.52233096,1584.8,1584.5,0.20322235]
[1744585232695,5.04829,1584.7,1584.3,10.09882]
[1744585232895,6.769,1584.6,1584.3,10.09882]
[1744585233096,6.769,1584.6,1584.4,0.20322331]
[1744585233278,6.769,1584.6,1584.5,5.04891]
[1744585233661,6.769,1584.6,1584.5,0.20322235]
[1744585233858,6.769,1584.6,1584.4,5.04908]
[1744585234061,6.769,1584.6,1584.5,0.20322235]
[1744585235797,6.769,1584.6,1584.5,5.25213235]
[1744585235961,6.769,1584.6,1584.5,6.28225259]
[1744585236165,6.769,1584.6,1584.5,0.20322235]
[1744585236364,6.769,1584.6,1584.5,5.04891]
[1744585236594,6.769,1584.6,1584.5,5.25211726]
[1744585237504,6.769,1584.6,1584.5,0.20320726]
[1744585238003,6.769,1584.6,1584.5,5.25211726]
[1744585238606,6.769,1584.6,1584.5,6.28223599]
[1744585238775,6.769,1584.6,1584.5,5.25211726]
[1744585239927,6.769,1584.6,1584.5,0.20320726]
[1744585239928,7.24049482,1584.6,1584.5,0.20320726]
[1744585240210,7.24049482,1584.6,1583.2,5.05275]
[1744585240211,5.04944,1584.4,1584.0,5.05038]
[1744585240410,16.69818482,1584.6,1583.8,10.1022]
[1744585240411,3.8591,1584.2,1583.8,10.1022]
[1744585240585,6.767,1584.1,1583.9,5.05078]
[1744585240784,6.767,1584.1,1583.9,10.10146]
[1744585240981,6.767,1584.1,1583.9,5.05068]
[1744585241385,6.767,1584.1,1583.9,10.10135]
[1744585242388,7.24199683,1584.1,1583.9,5.05067]
[1744585242571,5.051,1583.9,1583.5,5.9357]
[1744585242774,0.8591,1583.8,1583.4,5.05236]
[1744585243017,0.8591,1583.8,1583.3,0.8837]
[1744585243199,5.90965,1584.0,1583.6,5.05163]
[1744585243407,0.590965,1583.9,1583.6,5.05163]
[1744585243578,0.8591,1584.0,1583.7,5.05136]
[1744585243783,0.8591,1584.0,1583.5,5.05207]
[1744585244009,5.90988,1584.0,1583.5,10.10414]
[1744585244413,5.90988,1584.0,1583.6,5.05176]
[1744585244610,0.8591,1584.0,1583.7,5.05123]
[1744585244823,3.8591,1584.0,1583.7,5.05123]
[1744585244994,3.8591,1584.0,1583.6,10.10344]
[1744585245321,5.58620968,1584.0,1583.6,10.10344]
[1744585245517,5.58620968,1584.0,1583.7,5.05144]
[1744585245896,5.58620968,1584.0,1583.4,5.11554417]
[1744585246222,3.8591,1584.0,1583.8,5.05099]
[1744585246583,3.8591,1584.0,1583.7,5.05146]
[1744585247291,3.0,1584.0,1583.8,5.05095]
[1744585247603,16.41199683,1584.1,1583.9,5.05068]
[1744585247804,16.41199683,1584.1,1584.0,0.16413426]
[1744585248023,10.24199683,1584.1,1584.0,0.16413426]
[1744585248209,7.24199683,1584.1,1584.0,0.16413426]
[1744585249282,9.45592909,1584.1,1584.0,0.16413426]
[1744585250819,17.50610909,1584.1,1584.0,0.16413426]
[1744585251028,18.92370909,1584.1,1584.0,0.16413426]
[1744585251228,23.97417909,1584.1,1583.7,5.05134]
[1744585252347,13.32352909,1584.1,1583.8,5.05092]
[1744585252511,18.37371909,1584.1,1583.7,10.10276]
[1744585252714,18.37371909,1584.1,1583.9,0.17476058]
[1744585252909,18.37371909,1584.1,1583.8,0.17478042]
[1744585253103,18.37371909,1584.1,1583.7,10.10276]
[1744585253486,18.37371909,1584.1,1583.8,0.17478042]
[1744585254035,13.32352909,1584.1,1583.8,5.22585042]
[1744585254230,13.32352909,1584.1,1583.8,5.22581042]
[1744585254625,11.10959683,1584.1,1583.9,5.05067]
[1744585255313,11.10959683,1584.1,1583.9,10.10137]
[1744585255512,10.24199683,1584.1,1584.0,0.17580918]
[1744585256539,10.24199683,1584.1,1584.0,5.22630918]
[1744585256702,7.24199683,1584.1,1584.0,5.22630918]
[1744585257098,6.767,1584.1,1584.0,5.22630918]
[1744585257357,6.767,1584.1,1584.0,6.8471041]
[1744585260354,11.81225,1584.4,1584.0,10.27680918]
[1744585260654,7.23140088,1584.4,1584.1,5.05008]
[1744585260820,7.23140088,1584.4,1584.3,5.04954]
[1744585260821,10.23140088,1584.4,1584.3,5.04954]
[1744585261753,4.18415239,1584.7,1584.6,5.04859]
[1744585261942,4.18415239,1584.7,1584.6,7.00353205]
[1744585262138,4.18415239,1584.7,1584.6,7.17866875]
[1744585262462,4.18415239,1584.9,1584.8,5.04795]
[1744585262771,4.18415239,1584.9,1584.8,6.057557]
[1744585263063,4.18415239,1584.9,1584.8,7.10808078]
[1744585266770,4.18415239,1584.9,1584.8,6.09847378]
[1744585266974,0.48085054,1585.2,1584.9,5.04742]
[1744585267268,5.04637,1585.3,1585.0,0.16362165]
[1744585267690,10.09378,1585.2,1585.0,0.16362165]
[1744585267873,0.8466,1585.1,1584.6,5.93988]
[1744585268053,5.04765,1584.9,1584.6,5.04848]
[1744585268255,6.761,1585.0,1584.4,0.8914]
[1744585268437,6.761,1585.0,1584.7,5.04811]
[1744585268643,8.026466,1585.0,1584.7,10.09627]
[1744585268843,6.761,1585.0,1584.8,5.04794]
[1744585269249,6.761,1585.0,1584.7,5.04811]
[1744585269664,6.76,1584.9,1584.7,5.04811]
[1744585269868,5.89366,1585.1,1584.7,5.04811]
[1744585270156,6.76,1585.0,1584.7,5.04811]
[1744585270487,6.76,1585.0,1584.8,0.15002628]
[1744585271244,6.76,1584.9,1584.8,0.15002628]
[1744585271448,7.23907978,1584.9,1584.8,0.15002628]
[1744585271949,7.23907978,1584.9,1584.6,10.09704]
[1744585272384,7.23907978,1584.9,1584.7,0.1500461]
[1744585272755,7.23907978,1584.9,1584.7,5.04814]
[1744585272965,7.23907978,1584.9,1584.8,0.15002628]
[1744585273291,7.23907978,1584.9,1584.6,5.04845]
[1744585273471,5.04812,1584.8,1584.4,5.94051]
[1744585273654,5.04846,1584.7,1584.2,0.8914]
[1744585273853,5.8946,1584.8,1584.4,10.09819]
[1744585274071,10.94275,1584.8,1584.4,5.04908]
[1744585274799,0.8466,1584.8,1584.2,5.94122]
[1744585274990,5.04956,1584.3,1584.0,0.8914]
[1744585275165,11.80986,1584.2,1583.9,5.05076]
[1744585275359,0.8466,1584.1,1583.8,5.9425]
[1744585275562,5.89688,1584.1,1583.8,5.9425]
[1744585276275,0.8466,1584.1,1583.8,5.9425]
[1744585276983,0.8466,1584.1,1583.8,10.99349]
[1744585277686,0.8466,1584.1,1583.8,10.99343]
[1744585277888,6.76,1584.2,1584.1,5.05018]
[1744585278184,6.76,1584.2,1584.0,5.05042]
[1744585278493,6.761,1584.1,1583.9,10.10152]
[1744585278701,6.761,1584.1,1583.9,5.05071]
[1744585278702,7.22428974,1584.1,1583.9,5.05071]
[1744585278855,7.22428974,1584.1,1583.9,10.10138]
[1744585279056,7.22428974,1584.1,1583.9,11.3105923]
[1744585279389,7.22428974,1584.1,1583.9,6.2598823]
[1744585279589,7.22428974,1584.1,1583.9,5.05067]
[1744585280287,7.22428974,1584.1,1583.8,5.94251]
[1744585280489,5.0506,1584.0,1583.6,5.93409]
[1744585280691,5.9279,1584.0,1583.6,5.93409]
[1744585280869,5.05083,1583.9,1583.5,5.05204]
[1744585281070,5.943643,1583.9,1583.5,10.10399]
[1744585281469,5.943643,1583.9,1583.5,10.10389]
[1744585281793,5.05188,1583.6,1583.3,5.05272]
[1744585282002,6.762,1583.5,1583.3,5.05272]
[1744585282677,6.762,1583.5,1583.3,5.0526]
[1744585282877,6.762,1583.5,1583.4,5.05241]
[1744585283384,6.762,1583.5,1583.3,10.10522]
[1744585283589,6.762,1583.5,1583.3,10.10524]
[1744585283771,6.762,1583.5,1583.4,0.1441528]
[1744585284100,6.762,1583.5,1583.4,5.05241]
[1744585284413,6.762,1583.5,1583.4,5.1965628]
[1744585286234,6.762,1583.5,1583.4,0.1441528]
[1744585286435,14.3893858,1583.5,1583.4,0.1441528]
[1744585286727,8.93035,1583.2,1583.1,0.05]
[1744585286936,3.8773,1583.2,1583.1,0.05]
[1744585287140,9.764,1583.2,1583.1,5.10337]
[1744585287436,0.8773,1583.4,1583.1,5.10337]
[1744585287639,6.764,1583.2,1583.1,5.10337]
[1744585287833,0.8773,1583.4,1583.1,5.10324]
[1744585288040,6.764,1583.2,1583.1,0.05]
[1744585288403,14.81705,1583.2,1583.1,0.05]
[1744585288824,9.764,1583.2,1583.1,0.05]
[1744585289935,14.81705,1583.2,1583.1,0.05]
[1744585290305,22.41435,1583.2,1583.1,0.05]
[1744585290506,83.51705173,1583.2,1583.1,0.05]
[1744585291045,73.072364,1583.2,1583.1,0.05]
[1744585291260,79.831364,1583.2,1583.1,0.05]
[1744585291842,83.51205173,1583.2,1583.1,0.05]
[1744585292202,5.91763,1582.8,1582.7,0.4002028]
[1744585292424,16.773826,1582.8,1582.7,0.4002028]
[1744585293261,23.493826,1582.8,1582.7,0.4002028]
[1744585293455,27.17451373,1582.8,1582.7,0.4002028]
[1744585293661,9.46827,1582.6,1582.5,0.00660101]
[1744585293872,19.31895773,1582.6,1582.5,0.00660101]
[1744585294185,21.7563325,1582.6,1582.5,0.00660101]
[1744585294335,22.21852174,1582.6,1582.5,0.00660101]
[1744585294533,0.55,1582.5,1582.1,5.10637]
[1744585294758,6.761,1582.4,1582.2,5.05609]
[1744585294964,6.761,1582.4,1582.2,10.11224]
[1744585295163,6.761,1582.4,1582.2,5.05609]
[1744585295842,6.761,1582.4,1582.3,5.05593]
[1744585296239,7.4381,1582.4,1582.1,5.10654]
[1744585296544,7.4381,1582.4,1582.1,0.05]
[1744585296878,7.4381,1582.4,1582.2,5.05611]
[1744585297035,6.762,1582.4,1582.2,10.11221]
[1744585297231,6.762,1582.4,1582.2,5.0561]
[1744585297764,3.76286401,1582.6,1582.3,5.05593]
[1744585298094,0.46218924,1582.6,1582.5,5.05529]
[1744585298255,55.38458092,1583.0,1582.8,5.05421]
[1744585298450,6.762,1582.9,1582.8,5.05421]
[1744585298649,6.762,1582.9,1582.5,5.94017]
[1744585298650,12.67945,1582.9,1582.5,5.94017]
[1744585298976,12.67945,1582.9,1582.5,5.05517]
[1744585299150,1.267945,1582.8,1582.4,5.05555]
[1744585299366,5.05483,1582.7,1582.3,0.885]
[1744585299550,0.8633,1582.5,1582.1,0.935]
[1744585299875,0.8633,1582.5,1582.1,0.05]
[1744585299876,11.81867,1582.4,1582.1,0.05]
[1744585300083,6.763,1582.4,1582.1,0.05]
[1744585300296,8.536703,1582.4,1582.1,0.05]
[1744585300480,8.536703,1582.4,1582.2,0.17551308]
[1744585300685,8.536703,1582.4,1582.1,0.05]
[1744585300860,12.00195707,1582.4,1582.3,0.17549698]
[1744585301193,6.46955,1582.2,1582.1,0.05]
[1744585301394,13.15023773,1582.2,1582.1,0.05]
[1744585301694,57.199,1582.2,1582.1,0.05]
[1744585301898,63.963,1582.2,1582.1,0.05]
[1744585302198,60.963,1582.2,1582.1,5.10657]
[1744585302360,54.199,1582.2,1582.1,5.99157]
[1744585302562,54.199,1582.2,1582.1,1.09917869]
[1744585302762,54.199,1582.2,1582.1,6.15574869]
[1744585303198,60.963,1582.2,1582.1,6.15574869]
[1744585304073,54.199,1582.2,1582.1,6.15574869]
[1744585304398,60.963,1582.2,1582.1,6.15574869]
[1744585304754,54.199,1582.2,1582.1,6.15574869]
[1744585304962,54.199,1582.2,1582.1,1.09917869]
[1744585305257,74.99015,1582.2,1582.1,0.21417869]
[1744585305479,74.99015,1582.2,1582.1,0.05]
[1744585305697,85.70413773,1582.2,1582.1,0.05]
[1744585305892,85.70413773,1582.2,1581.3,0.00660101]
[1744585305893,8.9221,1581.4,1581.3,0.00660101]
[1744585306156,3.0,1581.4,1581.3,0.00660101]
[1744585306396,6.765,1581.6,1581.4,5.0588]
[1744585306579,0.47952218,1581.8,1581.7,5.05784]
[1744585306782,9.765,1582.0,1581.7,10.11552]
[1744585306987,11.86165396,1582.0,1581.8,5.05746]
[1744585307183,11.86165396,1582.0,1581.7,5.05768]
[1744585307389,11.86165396,1582.0,1581.7,10.11538]
[1744585307583,6.1449596,1582.1,1581.9,5.0572]
[1744585307783,60.964,1582.2,1582.1,5.05657]
[1744585308107,60.964,1582.2,1582.1,5.20542142]
[1744585308466,60.964,1582.2,1582.1,0.14885142]
[1744585308667,68.83016174,1582.2,1582.1,0.14885142]
[1744585308879,68.83016174,1582.2,1581.8,5.94489]
[1744585308880,63.77391174,1582.2,1582.0,5.05666]
[1744585309077,64.23657022,1582.2,1582.1,0.14893836]
[1744585309467,8.05707,1582.0,1581.6,5.05806]
[1744585309806,3.0,1582.0,1581.7,5.20683794]
[1744585310104,3.0,1582.0,1581.7,5.20673794]
[1744585310290,13.11399,1582.0,1581.7,0.14901794]
[1744585310609,6.368729,1581.9,1581.5,11.00415]
[1744585310760,3.0,1582.0,1581.8,5.20634938]
[1744585310966,6.766,1581.9,1581.8,5.05734]
[1744585311164,3.0,1582.0,1581.9,5.05717]
[1744585311165,6.766,1582.0,1581.9,5.05717]